fUST/lending_fUST_20250715
["ID","MTS","AMOUNT","RATE_DAILY","PERIOD"]
[372126371,1752531041528,-500.0,0.00021989,2]
[372126372,1752531041539,-500.0,0.00021989,2]
[372126373,1752531041549,-500.0,0.00021989,2]
[372126374,1752531041562,-603.66027059,0.00021989,2]
[372126375,1752531041574,-500.0,0.00021989,2]
[372126376,1752531041584,-500.0,0.00021989,2]
[372126377,1752531041593,-452.86405637,0.00021989,2]
[372126378,1752531041603,-383.70446506,0.00021994,2]
[372126379,1752531041613,-30765.66,0.00022,7]
[372126380,1752531041625,-214.33456592,0.00022,7]
[372126381,1752531041635,-29733.74,0.00022,2]
[372126382,1752531041646,-160.0,0.00022001,2]
[372126383,1752531041656,-1835.59248973,0.00022176,6]
[372126384,1752531041666,-3500.0,0.00022188,2]
[372126385,1752531041675,-738.22,0.00022191,3]
[372126386,1752531041684,-552.53,0.00022191,3]
[372126387,1752531041694,-460.0,0.00022191,3]
[372126388,1752531041703,-460.0,0.00022191,3]
[372126389,1752531041713,-460.0,0.00022191,3]
[372126390,1752531041723,-460.0,0.00022191,3]
[372126391,1752531041732,-188.79,0.00022191,3]
[372126392,1752531041742,-460.0,0.00022191,3]
[372126393,1752531041751,-460.0,0.00022191,3]
[372126394,1752531041761,-460.0,0.00022191,3]
[372126395,1752531041770,-460.0,0.00022191,3]
[372126396,1752531041780,-460.0,0.00022191,3]
[372126397,1752531041791,-460.62,0.00022191,3]
[372126398,1752531041802,-460.0,0.00022191,3]
[372126399,1752531041811,-460.0,0.00022191,3]
[372126400,1752531041821,-460.0,0.00022191,3]
[372126401,1752531041831,-460.0,0.00022191,3]
[372126402,1752531041840,-460.0,0.00022191,3]
[372126403,1752531041851,-670.62,0.00022191,3]
[372126404,1752531041861,-460.0,0.00022191,3]
[372126405,1752531041871,-460.0,0.00022191,3]
[372126406,1752531041991,-460.0,0.00022191,3]
[372126407,1752531042001,-460.0,0.00022191,3]
[372126408,1752531042010,-460.0,0.00022191,3]
[372126409,1752531042020,-460.0,0.00022191,3]
[372126410,1752531042029,-460.0,0.00022191,3]
[372126411,1752531042039,-460.0,0.00022191,3]
[372126412,1752531042048,-460.0,0.00022191,3]
[372126413,1752531042058,-460.0,0.00022191,3]
[372126414,1752531042067,-460.0,0.00022191,3]
[372126415,1752531042077,-460.0,0.00022191,3]
[372126416,1752531042087,-460.0,0.00022191,3]
[372126417,1752531042098,-460.0,0.00022191,3]
[372126418,1752531042108,-460.0,0.00022191,3]
[372126419,1752531042117,-460.0,0.00022191,3]
[372126420,1752531042127,-460.0,0.00022191,3]
[372126421,1752531042137,-460.0,0.00022191,3]
[372126422,1752531042146,-579.96569069,0.00022191,3]
[372126423,1752531042156,-460.0,0.00022191,3]
[372126424,1752531042166,-460.0,0.00022191,3]
[372126425,1752531042175,-460.0,0.00022191,3]
[372126426,1752531042187,-696.35,0.00022191,3]
[372126427,1752531042197,-460.0,0.00022191,3]
[372126428,1752531042207,-460.0,0.00022191,3]
[372126429,1752531042218,-460.0,0.00022191,3]
[372126430,1752531042229,-460.0,0.00022191,3]
[372126431,1752531042239,-654.26,0.00022191,3]
[372126432,1752531042250,-460.0,0.00022191,3]
[372126433,1752531042260,-460.0,0.00022191,3]
[372126434,1752531042270,-460.0,0.00022191,3]
[372126435,1752531042281,-460.0,0.00022191,3]
[372126436,1752531042293,-460.0,0.00022191,3]
[372126437,1752531042304,-460.0,0.00022191,3]
[372126438,1752531042315,-460.0,0.00022191,3]
[372126439,1752531042325,-976.96,0.00022191,3]
[372126440,1752531042335,-460.0,0.00022191,3]
[372126441,1752531042347,-460.0,0.00022191,3]
[372126442,1752531042356,-460.0,0.00022191,3]
[372126443,1752531042366,-460.0,0.00022191,3]
[372126444,1752531042377,-252.99633849,0.00022191,3]
[372126445,1752531042387,-460.0,0.00022191,3]
[372126446,1752531042397,-460.0,0.00022191,3]
[372126447,1752531042408,-460.0,0.00022191,3]
[372126448,1752531042417,-460.0,0.00022191,3]
[372126449,1752531042427,-460.0,0.00022191,3]
[372126450,1752531042438,-460.0,0.00022191,3]
[372126451,1752531042448,-460.0,0.00022191,3]
[372126452,1752531042458,-460.0,0.00022191,3]
[372126453,1752531042467,-460.0,0.00022191,3]
[372126454,1752531042477,-460.0,0.00022191,3]
[372126455,1752531042487,-460.0,0.00022191,3]
[372126456,1752531042497,-460.0,0.00022191,3]
[372126457,1752531042506,-460.0,0.00022191,3]
[372126458,1752531042516,-460.0,0.00022191,3]
[372126459,1752531042526,-460.0,0.00022191,3]
[372126460,1752531042536,-460.0,0.00022191,3]
[372126461,1752531042546,-460.0,0.00022191,3]
[372126462,1752531042556,-3397.88,0.00022191,3]
[372126463,1752531042565,-460.0,0.00022191,3]
[372126464,1752531042577,-460.0,0.00022191,3]
[372126465,1752531042587,-7036.47,0.00022191,3]
[372126466,1752531042601,-460.0,0.00022191,3]
[372126467,1752531042611,-460.0,0.00022191,3]
[372126468,1752531042621,-460.0,0.00022191,3]
[372126469,1752531042631,-460.0,0.00022191,3]
[372126470,1752531042640,-460.0,0.00022191,3]
[372126471,1752531042649,-832.35,0.00022191,3]
[372126472,1752531042660,-800.0,0.00022346,2]
[372126473,1752531042670,-1835.59248973,0.00022383,7]
[372126474,1752531042680,-647.00222637,0.00022421,2]
[372126475,1752531042689,-1000.0,0.00022421,2]
[372126476,1752531042699,-500.0,0.00022421,2]
[372126477,1752531042709,-738.22,0.00022465,3]
[372126478,1752531042719,-552.53,0.00022465,3]
[372126479,1752531042728,-460.0,0.00022465,3]
[372126480,1752531042740,-460.0,0.00022465,3]
[372126481,1752531042750,-460.0,0.00022465,3]
[372126482,1752531042759,-460.0,0.00022465,3]
[372126483,1752531042769,-532.0,0.00022465,3]
[372126484,1752531042779,-670.62,0.00022465,3]
[372126485,1752531042790,-276.76329084,0.00022465,3]
[372126486,1752531042801,-460.0,0.00022465,3]
[372126487,1752531042811,-460.0,0.00022465,3]
[372126488,1752531042822,-460.0,0.00022465,3]
[372126489,1752531042831,-460.0,0.00022465,3]
[372126490,1752531042841,-460.0,0.00022465,3]
[372126491,1752531042853,-460.0,0.00022465,3]
[372126492,1752531042862,-460.0,0.00022465,3]
[372126493,1752531042872,-460.0,0.00022465,3]
[372126494,1752531042883,-460.0,0.00022465,3]
[372126495,1752531042894,-460.0,0.00022465,3]
[372126496,1752531042906,-460.0,0.00022465,3]
[372126497,1752531042915,-460.0,0.00022465,3]
[372126498,1752531042926,-460.0,0.00022465,3]
[372126499,1752531042937,-460.0,0.00022465,3]
[372126500,1752531042947,-696.35,0.00022465,3]
[372126501,1752531042959,-460.0,0.00022465,3]
[372126502,1752531042970,-460.0,0.00022465,3]
[372126503,1752531042980,-460.0,0.00022465,3]
[372126504,1752531042990,-460.0,0.00022465,3]
[372126505,1752531042999,-654.26,0.00022465,3]
[372126506,1752531043010,-460.0,0.00022465,3]
[372126507,1752531043019,-460.0,0.00022465,3]
[372126508,1752531043028,-460.0,0.00022465,3]
[372126509,1752531043039,-460.0,0.00022465,3]
[372126510,1752531043048,-460.0,0.00022465,3]
[372126511,1752531043059,-460.0,0.00022465,3]
[372126512,1752531043070,-460.0,0.00022465,3]
[372126513,1752531043081,-976.96,0.00022465,3]
[372126514,1752531043091,-460.0,0.00022465,3]
[372126515,1752531043103,-460.0,0.00022465,3]
[372126516,1752531043113,-302.68778321,0.00022465,3]
[372126517,1752531043122,-460.0,0.00022465,3]
[372126518,1752531043133,-460.0,0.00022465,3]
[372126520,1752531043143,-460.0,0.00022465,3]
[372126521,1752531043152,-460.0,0.00022465,3]
[372126522,1752531043162,-460.0,0.00022465,3]
[372126523,1752531043171,-460.0,0.00022465,3]
[372126524,1752531043181,-460.0,0.00022465,3]
[372126525,1752531043191,-460.0,0.00022465,3]
[372126526,1752531043201,-460.0,0.00022465,3]
[372126528,1752531043211,-460.0,0.00022465,3]
[372126530,1752531043222,-463.17672763,0.00022465,3]
[372126532,1752531043233,-460.0,0.00022465,3]
[372126534,1752531043243,-460.0,0.00022465,3]
[372126535,1752531043254,-460.0,0.00022465,3]
[372126537,1752531043263,-460.0,0.00022465,3]
[372126539,1752531043273,-3397.88,0.00022465,3]
[372126541,1752531043283,-460.0,0.00022465,3]
[372126543,1752531043296,-460.0,0.00022465,3]
[372126545,1752531043305,-7036.47,0.00022465,3]
[372126546,1752531043315,-460.0,0.00022465,3]
[372126548,1752531043324,-460.0,0.00022465,3]
[372126549,1752531043335,-460.0,0.00022465,3]
[372126550,1752531043346,-832.35,0.00022465,3]
[372126551,1752531043356,-1502.61109135,0.00022483,2]
[372126552,1752531043366,-500.0,0.00022521,2]
[372126553,1752531043376,-1003.64477649,0.00022521,2]
[372126554,1752531043386,-1000.0,0.00022521,2]
[372126555,1752531043395,-1000.0,0.00022521,2]
[372126556,1752531043404,-1000.0,0.00022521,2]
[372126557,1752531043414,-1000.0,0.00022521,2]
[372126558,1752531043424,-1000.0,0.00022521,2]
[372126559,1752531043434,-500.97108494,0.00022521,2]
[372126560,1752531043444,-1000.0,0.00022521,2]
[372126561,1752531043454,-1000.0,0.00022521,2]
[372126562,1752531043464,-1000.0,0.00022521,2]
[372126563,1752531043473,-1000.0,0.00022521,2]
[372126564,1752531043483,-1000.0,0.00022521,2]
[372126565,1752531043493,-1000.0,0.00022521,2]
[372126566,1752531043503,-260.0,0.00022549,2]
[372126567,1752531043513,-1835.59248973,0.0002259,7]
[372126568,1752531043524,-151.0,0.000226,9]
[372126569,1752531043534,-207.4,0.00022708,2]
[372126570,1752531043543,-4000.0,0.00022736,2]
[372126571,1752531043553,-738.22,0.00022739,3]
[372126572,1752531043563,-552.53,0.00022739,3]
[372126573,1752531043572,-460.0,0.00022739,3]
[372126574,1752531043583,-460.0,0.00022739,3]
[372126575,1752531043596,-670.62,0.00022739,3]
[372126576,1752531043605,-460.0,0.00022739,3]
[372126577,1752531043615,-460.0,0.00022739,3]
[372126578,1752531043624,-460.0,0.00022739,3]
[372126579,1752531043633,-460.0,0.00022739,3]
[372126580,1752531043643,-460.0,0.00022739,3]
[372126581,1752531043653,-460.0,0.00022739,3]
[372126582,1752531043663,-460.0,0.00022739,3]
[372126583,1752531043673,-460.0,0.00022739,3]
[372126584,1752531043683,-460.0,0.00022739,3]
[372126585,1752531043693,-696.35,0.00022739,3]
[372126586,1752531043703,-460.0,0.00022739,3]
[372126587,1752531043712,-460.0,0.00022739,3]
[372126588,1752531043723,-460.0,0.00022739,3]
[372126589,1752531043733,-654.26,0.00022739,3]
[372126590,1752531043744,-460.0,0.00022739,3]
[372126591,1752531043755,-517.79,0.00022739,3]
[372126592,1752531043764,-460.0,0.00022739,3]
[372126593,1752531043775,-460.0,0.00022739,3]
[372126594,1752531043786,-315.43,0.00022739,3]
[372126595,1752531043797,-460.0,0.00022739,3]
[372126596,1752531043806,-976.96,0.00022739,3]
[372126597,1752531043815,-460.0,0.00022739,3]
[372126598,1752531043825,-556.43091798,0.00022739,3]
[372126599,1752531043836,-460.0,0.00022739,3]
[372126600,1752531043848,-460.0,0.00022739,3]
[372126601,1752531043858,-460.0,0.00022739,3]
[372126602,1752531043868,-460.0,0.00022739,3]
[372126603,1752531043877,-460.0,0.00022739,3]
[372126604,1752531043887,-460.0,0.00022739,3]
[372126605,1752531043896,-460.0,0.00022739,3]
[372126606,1752531043906,-460.0,0.00022739,3]
[372126607,1752531043916,-460.0,0.00022739,3]
[372126608,1752531043926,-460.0,0.00022739,3]
[372126609,1752531043937,-3397.88,0.00022739,3]
[372126610,1752531043947,-460.0,0.00022739,3]
[372126611,1752531043956,-460.0,0.00022739,3]
[372126612,1752531043966,-460.0,0.00022739,3]
[372126613,1752531043976,-7036.47,0.00022739,3]
[372126614,1752531043986,-460.0,0.00022739,3]
[372126615,1752531043997,-832.35,0.00022739,3]
[372126616,1752531044007,-308.5722471,0.00022765,2]
[372126617,1752531044016,-1835.59248973,0.00022797,7]
[372126618,1752531044026,-800.0,0.0002284,2]
[372126619,1752531044036,-1534.81786023,0.00022865,2]
[372126620,1752531044046,-151.0,0.000229,7]
[372126621,1752531044055,-1000.0,0.00022968,2]
[372126622,1752531044069,-160.0,0.00023,3]
[372126623,1752531044080,-838.70323114,0.00023,3]
[372126624,1752531044090,-230.73061749,0.00023,3]
[372126625,1752531044101,-160.0,0.00023,3]
[372126626,1752531044111,-525.46609069,0.00023,3]
[372126627,1752531044120,-1974.67,0.00023,2]
[372126628,1752531044130,-215.47013733,0.00023,3]
[372126629,1752531044141,-160.0,0.00023,3]
[372126630,1752531044151,-1835.59248973,0.00023003,8]
[372126631,1752531044160,-738.22,0.00023013,3]
[372126632,1752531044170,-552.53,0.00023013,3]
[372126633,1752531044179,-460.0,0.00023013,3]
[372126634,1752531044188,-460.0,0.00023013,3]
[372126635,1752531044198,-670.62,0.00023013,3]
[372126636,1752531044208,-460.0,0.00023013,3]
[372126637,1752531044217,-460.0,0.00023013,3]
[372126638,1752531044227,-460.0,0.00023013,3]
[372126639,1752531044236,-460.0,0.00023013,3]
[372126640,1752531044246,-460.0,0.00023013,3]
[372126641,1752531044255,-696.35,0.00023013,3]
[372126642,1752531044265,-460.0,0.00023013,3]
[372126643,1752531044275,-460.0,0.00023013,3]
[372126644,1752531044284,-654.26,0.00023013,3]
[372126645,1752531044296,-511.0,0.00023013,3]
[372126646,1752531044305,-460.0,0.00023013,3]
[372126647,1752531044315,-976.96,0.00023013,3]
[372126648,1752531044324,-460.0,0.00023013,3]
[372126649,1752531044334,-460.0,0.00023013,3]
[372126650,1752531044345,-460.0,0.00023013,3]
[372126651,1752531044355,-460.0,0.00023013,3]
[372126652,1752531044364,-527.69,0.00023013,3]
[372126653,1752531044375,-460.0,0.00023013,3]
[372126654,1752531044385,-460.0,0.00023013,3]
[372126655,1752531044395,-460.0,0.00023013,3]
[372126656,1752531044404,-460.0,0.00023013,3]
[372126657,1752531044415,-460.0,0.00023013,3]
[372126658,1752531044424,-460.0,0.00023013,3]
[372126659,1752531044435,-3397.88,0.00023013,3]
[372126660,1752531044444,-460.0,0.00023013,3]
[372126661,1752531044454,-7036.47,0.00023013,3]
[372126662,1752531044464,-460.0,0.00023013,3]
[372126663,1752531044473,-460.0,0.00023013,3]
[372126664,1752531044521,-832.35,0.00023013,3]
[372126665,1752531044530,-26544.45391735,0.00023054,2]
[372126666,1752531044540,-1000.0,0.00023068,2]
[372126667,1752531044549,-156.19728545,0.00023068,2]
[372126668,1752531044558,-502.93992605,0.00023068,2]
[372126669,1752531044568,-1500.0,0.00023068,2]
[372126670,1752531044577,-1000.0,0.00023068,2]
[372126671,1752531044586,-1500.0,0.00023068,2]
[372126672,1752531044598,-1500.0,0.00023068,2]
[372126673,1752531044609,-1500.0,0.00023068,2]
[372126674,1752531044620,-500.77879044,0.00023068,2]
[372126675,1752531044631,-1500.0,0.00023068,2]
[372126676,1752531044641,-360.0,0.00023097,2]
[372126677,1752531044652,-958.08,0.000231,7]
[372126678,1752531044662,-151.0,0.000231,8]
[372126679,1752531044673,-151.0,0.00023205,6]
[372126680,1752531044683,-1835.59248973,0.0002321,8]
[372126681,1752531044694,-1502.61109135,0.00023256,2]
[372126682,1752531044704,-4500.0,0.00023284,2]
[372126683,1752531044715,-738.22,0.00023287,3]
[372126684,1752531044725,-552.53,0.00023287,3]
[372126685,1752531044735,-460.0,0.00023287,3]
[372126686,1752531044746,-460.0,0.00023287,3]
[372126687,1752531044756,-670.62,0.00023287,3]
[372126688,1752531044765,-233.44,0.00023287,3]
[372126689,1752531044774,-460.0,0.00023287,3]
[372126690,1752531044784,-460.0,0.00023287,3]
[372126691,1752531044793,-460.0,0.00023287,3]
[372126692,1752531044803,-289.88,0.00023287,3]
[372126693,1752531044812,-696.35,0.00023287,3]
[372126694,1752531044821,-326.74,0.00023287,3]
[372126695,1752531044831,-654.26,0.00023287,3]
[372126696,1752531044840,-460.0,0.00023287,3]
[372126697,1752531044850,-976.96,0.00023287,3]
[372126698,1752531044860,-488.68,0.00023287,3]
[372126699,1752531044870,-460.0,0.00023287,3]
[372126700,1752531044879,-367.23,0.00023287,3]
[372126701,1752531044889,-460.0,0.00023287,3]
[372126702,1752531044899,-460.0,0.00023287,3]
[372126703,1752531044908,-460.0,0.00023287,3]
[372126704,1752531044918,-363.96,0.00023287,3]
[372126705,1752531044927,-460.0,0.00023287,3]
[372126706,1752531044937,-460.0,0.00023287,3]
[372126707,1752531044947,-460.0,0.00023287,3]
[372126708,1752531044956,-3397.88,0.00023287,3]
[372126709,1752531044966,-460.0,0.00023287,3]
[372126710,1752531044976,-7036.47,0.00023287,3]
[372126711,1752531044986,-460.0,0.00023287,3]
[372126712,1752531044995,-150.0,0.00023291,2]
[372126713,1752531045005,-150.0,0.00023291,2]
[372126714,1752531045014,-150.0,0.00023291,2]
[372126715,1752531045024,-647.0,0.00023291,2]
[372126716,1752531045033,-1598.413,0.00023291,2]
[372126717,1752531045043,-968.0,0.00023291,2]
[372126718,1752531045052,-407.0,0.00023291,2]
[372126719,1752531045062,-3898.12431881,0.000233,2]
[372126720,1752531045071,-151.0,0.000233,8]
[372126721,1752531045080,-150000.0,0.000233,2]
[372126722,1752531045090,-150000.0,0.000233,2]
[372126723,1752531045100,-79869.85636665,0.000233,2]
[372126724,1752531045120,-18917.77651588,0.000233,2]
[372126725,1752531045131,-2654.03580984,0.000233,2]
[372126726,1752531045207,-832.35,0.00023287,3]
[372126727,1752531045217,-48558.33130763,0.000233,2]
[372126728,1752531045227,-3944.21,0.000233,7]
[372126729,1752531045237,-29733.74,0.000233,2]
[372126730,1752531045246,-500.0,0.00023356,2]
[372126731,1752531045255,-1835.59248973,0.00023417,9]
[372126732,1752531045265,-151.0,0.000235,8]
[372126733,1752531045275,-150.0,0.0002355,2]
[372126734,1752531045284,-738.22,0.00023561,3]
[372126736,1752531045297,-552.53,0.00023561,3]
[372126737,1752531045307,-460.0,0.00023561,3]
[372126738,1752531045317,-460.0,0.00023561,3]
[372126739,1752531045328,-670.62,0.00023561,3]
[372126740,1752531045339,-460.0,0.00023561,3]
[372126741,1752531045350,-227.34,0.00023561,3]
[372126742,1752531045360,-460.0,0.00023561,3]
[372126743,1752531045370,-696.35,0.00023561,3]
[372126744,1752531045380,-654.26,0.00023561,3]
[372126745,1752531045390,-572.75,0.00023561,3]
[372126746,1752531045400,-976.96,0.00023561,3]
[372126747,1752531045410,-460.0,0.00023561,3]
[372126748,1752531045419,-460.0,0.00023561,3]
[372126749,1752531045429,-460.0,0.00023561,3]
[372126750,1752531045439,-460.0,0.00023561,3]
[372126751,1752531045449,-460.0,0.00023561,3]
[372126752,1752531045458,-460.0,0.00023561,3]
[372126753,1752531045469,-460.0,0.00023561,3]
[372126754,1752531045480,-3397.88,0.00023561,3]
[372126755,1752531045491,-460.0,0.00023561,3]
[372126756,1752531045500,-7036.47,0.00023561,3]
[372126757,1752531045511,-832.35,0.00023561,3]
[372126758,1752531045520,-2000.0,0.00023616,2]
[372126759,1752531045530,-2000.0,0.00023616,2]
[372126760,1752531045540,-2000.0,0.00023616,2]
[372126761,1752531045550,-500.0,0.00023616,2]
[372126763,1752531045559,-1835.59248973,0.00023624,9]
[372126765,1752531045569,-460.0,0.00023645,2]
[372126767,1752531045579,-19208.30135738,0.00023661,2]
[372126768,1752531045589,-151.0,0.000237,7]
[372126770,1752531045599,-3453.34018552,0.00023736,2]
[372126772,1752531045608,-487.0755,0.00023751,2]
[372126773,1752531045617,-784.20381887,0.00023794,2]
[372126775,1752531045627,-151.0,0.00023803,6]
[372126776,1752531045636,-1835.59248973,0.00023831,10]
[372126778,1752531045646,-2312.28533594,0.00023832,2]
[372126780,1752531045657,-738.22,0.00023835,3]
[372126781,1752531045666,-552.53,0.00023835,3]
[372126782,1752531045676,-327.94,0.00023835,3]
[372126784,1752531045685,-460.0,0.00023835,3]
[372126786,1752531045695,-670.62,0.00023835,3]
[372126788,1752531045705,-460.0,0.00023835,3]
[372126789,1752531045714,-460.0,0.00023835,3]
[372126791,1752531045723,-696.35,0.00023835,3]
[372126793,1752531045733,-654.26,0.00023835,3]
[372126795,1752531045742,-976.96,0.00023835,3]
[372126796,1752531045752,-460.0,0.00023835,3]
[372126798,1752531045761,-460.0,0.00023835,3]
[372126800,1752531045771,-460.0,0.00023835,3]
[372126802,1752531045780,-460.0,0.00023835,3]
[372126803,1752531045790,-460.0,0.00023835,3]
[372126805,1752531045799,-460.0,0.00023835,3]
[372126807,1752531045808,-3397.88,0.00023835,3]
[372126809,1752531045818,-460.0,0.00023835,3]
[372126811,1752531045828,-5945.22612523,0.00023835,3]
[372126813,1752531045840,-1091.24387477,0.00023835,3]
[372126814,1752531045851,-832.35,0.00023835,3]
[372126816,1752531045861,-6627.45072541,0.000239,7]
[372126849,1752531046219,-838.70323114,0.0001815,2]
[372126852,1752531046229,-500.0,0.00023299,2]
[372126855,1752531046239,-424.8964966,0.00023299,2]
[372126858,1752531046249,-426.43510207,0.000239,7]
[372126860,1752531046261,-5603.96887458,0.000239,7]
[372126862,1752531046272,-761.60007,0.000239,7]
[372126864,1752531046284,-679.17,0.000239,7]
[372126919,1752531046954,-10638.65,0.0002389,10]
[372126921,1752531046964,-16667.03522794,0.000239,7]
[372126923,1752531046975,-571.34,0.00023969,14]
[372126925,1752531046984,-525.46609069,0.00024,10]
[372126927,1752531046995,-838.70323114,0.00024,7]
[372126928,1752531047004,-838.70323114,0.00024,10]
[372126930,1752531047014,-230.73061749,0.00024,7]
[372126932,1752531047024,-230.73061749,0.00024,10]
[372126934,1752531047033,-160.0,0.00024,7]
[372126936,1752531047043,-525.46609069,0.00024,7]
[372126938,1752531047052,-215.47013733,0.00024,7]
[372126939,1752531047062,-160.0,0.00024,7]
[372126941,1752531047072,-160.0,0.00024,10]
[372126943,1752531047082,-1835.59248973,0.00024038,10]
[372126945,1752531047092,-215.0738,0.00024077,2]
[372126947,1752531047102,-250.0,0.00024098,2]
[372126949,1752531047112,-958.08,0.000241,7]
[372126951,1752531047121,-155.0,0.00024108,2]
[372126952,1752531047131,-738.22,0.00024109,3]
[372126954,1752531047140,-552.53,0.00024109,3]
[372126956,1752531047149,-460.0,0.00024109,3]
[372126958,1752531047159,-670.62,0.00024109,3]
[372126959,1752531047169,-460.0,0.00024109,3]
[372126960,1752531047179,-460.0,0.00024109,3]
[372126961,1752531047188,-696.35,0.00024109,3]
[372126962,1752531047198,-654.26,0.00024109,3]
[372126964,1752531047207,-976.96,0.00024109,3]
[372126965,1752531047217,-460.0,0.00024109,3]
[372126966,1752531047227,-460.0,0.00024109,3]
[372126967,1752531047236,-191.39,0.00024109,3]
[372126968,1752531047246,-460.0,0.00024109,3]
[372126969,1752531047256,-460.0,0.00024109,3]
[372126970,1752531047267,-3397.88,0.00024109,3]
[372126971,1752531047278,-460.0,0.00024109,3]
[372126972,1752531047291,-7036.47,0.00024109,3]
[372126973,1752531047306,-832.35,0.00024109,3]
[372126974,1752531047316,-500.0,0.00024164,2]
[372126975,1752531047327,-983.444475,0.00024164,2]
[372126976,1752531047339,-1023.16852624,0.00024164,2]
[372126977,1752531047350,-560.0,0.00024193,2]
[372126978,1752531047359,-285.67,0.00024224,14]
[372126979,1752531047370,-1835.59248973,0.00024245,10]
[372126980,1752531047380,-6063.36728061,0.00024258,2]
[372126981,1752531047390,-5000.0,0.00024258,2]
[372126982,1752531047399,-5000.0,0.00024258,2]
[372126983,1752531047409,-5000.0,0.00024258,2]
[372126984,1752531047419,-5000.0,0.00024258,2]
[372126985,1752531047429,-154.4683442,0.0002429,14]
[372126986,1752531047439,-1071.0,0.00024291,2]
[372126987,1752531047449,-151.0,0.000243,10]
[372126988,1752531047459,-3944.21,0.000243,7]
[372126989,1752531047469,-29733.74,0.000243,2]
[372126990,1752531047480,-1071.0,0.00024341,2]
[372126991,1752531047492,-150000.0,0.00024367,2]
[372126992,1752531047501,-738.22,0.00024383,3]
[372126993,1752531047511,-552.53,0.00024383,3]
[372126994,1752531047522,-460.0,0.00024383,3]
[372126995,1752531047532,-670.62,0.00024383,3]
[372126996,1752531047542,-460.0,0.00024383,3]
[372126997,1752531047553,-460.0,0.00024383,3]
[372126998,1752531047564,-696.35,0.00024383,3]
[372126999,1752531047574,-654.26,0.00024383,3]
[372127000,1752531047585,-976.96,0.00024383,3]
[372127001,1752531047596,-460.0,0.00024383,3]
[372127002,1752531047606,-460.0,0.00024383,3]
[372127003,1752531047616,-460.0,0.00024383,3]
[372127004,1752531047625,-3397.88,0.00024383,3]
[372127005,1752531047635,-460.0,0.00024383,3]
[372127006,1752531047647,-7036.47,0.00024383,3]
[372127007,1752531047656,-832.35,0.00024383,3]
[372127008,1752531047667,-4823.88648621,0.00024392,3]
[372127009,1752531047677,-168.0,0.00024395,2]
[372127010,1752531047688,-400.0,0.00024397,2]
[372127011,1752531047698,-151.0,0.00024402,7]
[372127012,1752531047707,-1835.59248973,0.00024452,11]
[372127013,1752531047717,-500.0,0.00024473,2]
[372127014,1752531047729,-1071.0,0.00024499,7]
[372127015,1752531047740,-385.662379,0.000245,8]
[372127016,1752531047750,-1971.403377,0.000245,2]
[372127017,1752531047760,-1071.0,0.00024505,2]
[372127018,1752531047770,-5514.54275248,0.00024558,2]
[372127019,1752531047780,-151.0,0.000246,7]